bitfinex-derivatives/quotes_BNBF0:USTF0_20250302
["timestamp","ask_amount","ask_price","bid_price","bid_amount"]
[1740932301160,0.26960744,620.7,618.94,0.29649104]
[1740932301361,0.26960744,620.68,618.85,1.42049104]
[1740932301566,0.26960744,620.67,618.86,0.29649104]
[1740932301766,0.26960744,620.7,618.87,0.29649104]
[1740932301966,0.26960744,620.69,618.88,0.29649104]
[1740932302161,0.26960744,620.7,618.89,0.29649104]
[1740932302367,0.26960744,620.69,618.9,0.29649104]
[1740932302567,0.26960744,620.7,618.91,0.29649104]
[1740932302763,0.32221166,620.71,618.92,0.32314354]
[1740932302965,0.32221166,620.71,618.93,0.29652224]
[1740932303267,0.26963838,620.7,618.93,0.2865138]
[1740932304662,0.26963838,620.7,618.94,0.60964689]
[1740932304966,0.32221166,620.71,618.95,0.2865138]
[1740932305368,0.26952186,620.7,618.96,0.2865138]
[1740932305569,0.32221166,620.71,618.97,0.2865138]
[1740932305771,0.32221166,620.71,618.98,0.2865138]
[1740932305967,0.32221166,620.71,618.99,0.2865138]
[1740932306163,0.32221166,620.71,619.0,0.2865138]
[1740932306362,0.32221166,620.71,618.95,0.2865138]
[1740932306563,0.32221166,620.71,618.96,0.2865138]
[1740932306768,0.32221166,620.71,618.97,0.2865138]
[1740932307069,0.32221166,620.71,618.98,0.2865138]
[1740932307263,0.32221166,620.71,618.94,0.32313309]
[1740932307264,0.26949055,620.7,619.06,1.16257576]
[1740932307468,0.26949055,620.7,619.07,0.2865138]
[1740932307668,0.32221166,620.71,619.08,0.2865138]
[1740932307966,1.41954668,622.25,619.09,0.2865138]
[1740932308267,0.2694728,622.24,619.1,0.2865138]
[1740932308467,0.2694728,622.23,619.11,0.2865138]
[1740932308670,0.2694728,622.22,619.12,0.2865138]
[1740932308870,0.2694728,622.21,619.07,0.2865138]
[1740932309070,0.26944653,622.2,619.08,0.29632794]
[1740932309265,0.26944653,622.19,619.07,0.29632794]
[1740932309468,0.26944653,622.18,619.08,0.29632794]
[1740932309664,0.26944653,622.17,619.09,0.29632794]
[1740932309865,0.26944653,622.16,619.1,0.29632794]
[1740932310169,0.26944653,622.15,619.11,0.29632794]
[1740932310471,0.26944653,622.14,619.12,0.29632794]
[1740932310869,1.41954668,622.44,619.13,0.29632794]
[1740932310870,0.26944653,622.13,619.13,0.29632794]
[1740932311070,0.26944653,622.12,619.14,0.29632794]
[1740932311267,0.26944653,622.11,619.15,0.29632794]
[1740932311573,0.26944653,622.1,619.16,0.29632794]
[1740932311772,0.26944653,622.09,619.14,0.29632794]
[1740932311973,0.26944653,622.08,619.14,0.29632794]
[1740932312174,0.26944653,622.07,619.14,0.29632794]
[1740932312376,0.26946225,622.06,619.15,0.29634384]
[1740932312578,0.26946225,622.05,619.16,0.29634384]
[1740932312770,0.26946225,622.04,619.16,0.29634384]
[1740932312979,0.26946225,622.03,619.17,0.29634384]
[1740932313178,0.26946225,622.02,619.14,0.29634384]
[1740932313375,0.26946225,622.01,619.15,0.29634384]
[1740932313675,0.26946225,622.0,619.16,0.29634384]
[1740932313876,0.26946225,621.99,619.14,0.29634384]
[1740932314077,0.26946225,621.98,619.15,0.29634384]
[1740932314473,0.26946225,621.97,619.16,0.29634384]
[1740932314669,0.26946225,621.96,619.14,0.29634384]
[1740932314970,0.26946225,621.95,619.15,0.29634384]
[1740932315175,0.26946225,622.84,619.14,0.29634384]
[1740932315376,0.26946225,622.83,619.15,0.29634384]
[1740932315670,0.26946225,622.82,619.16,0.29634384]
[1740932315875,0.26946225,622.81,619.17,0.29634384]
[1740932316173,0.26946225,622.8,619.18,0.29634384]
[1740932316370,0.26946225,622.79,619.16,0.29634384]
[1740932316571,0.26946225,622.78,619.17,0.29634384]
[1740932316776,0.26946225,622.77,619.18,0.29634384]
[1740932316973,0.26946225,622.76,619.19,0.29634384]
[1740932317371,0.26946225,622.75,619.2,0.29634384]
[1740932317574,1.41954668,623.22,619.16,0.29634384]
[1740932317575,0.26946225,622.74,619.16,0.29634384]
[1740932317874,0.26946225,622.73,619.17,0.29634384]
[1740932318074,0.26946225,622.72,619.18,0.29634384]
[1740932318274,0.26946225,622.71,619.19,0.29634384]
[1740932318474,0.26946225,622.7,619.2,0.29634384]
[1740932318771,0.26946225,622.69,619.21,0.29634384]
[1740932318975,0.26946225,622.68,619.16,0.29634384]
[1740932319178,0.26946225,622.67,619.17,0.29634384]
[1740932319374,0.26946225,622.66,619.16,0.29634384]
[1740932319575,0.26946225,622.65,619.17,0.29634384]
[1740932319875,0.26946225,622.64,619.18,0.29634384]
[1740932320076,0.26946225,622.64,619.15,0.739]
[1740932320077,0.26946225,622.63,619.19,0.29634384]
[1740932320271,1.41954668,623.4,619.2,0.29634384]
[1740932320272,0.26946225,622.62,619.2,0.29634384]
[1740932320482,0.26946225,622.61,619.16,0.29634384]
[1740932320679,0.26946225,622.61,619.15,0.739]
[1740932320680,0.26938189,622.6,619.17,0.29626255]
[1740932320980,0.26938189,622.59,619.18,0.29626255]
[1740932321174,0.26938189,622.58,619.19,0.29626255]
[1740932321372,0.26938189,622.57,619.2,0.29626255]
[1740932321576,0.26938189,622.56,619.21,0.29626255]
[1740932321777,0.26938189,622.55,619.16,0.29626255]
[1740932321977,0.26938189,622.54,619.17,0.29626255]
[1740932322178,0.26938189,622.53,619.18,0.29626255]
[1740932322372,0.26938189,622.52,619.19,0.29626255]
[1740932322573,1.41954668,622.86,619.17,1.363]
[1740932322773,0.26942703,622.85,619.18,0.29630845]
[1740932322977,0.26942703,622.84,619.18,0.29630845]
[1740932323278,0.26942703,622.83,619.18,0.29630845]
[1740932323478,0.26942703,622.82,619.18,0.29630845]
[1740932323680,0.26942703,622.81,619.18,0.29630845]
[1740932323880,0.26942703,622.8,619.18,0.29630845]
[1740932324074,0.26942703,622.79,619.18,0.29630845]
[1740932324273,0.26942703,622.78,619.18,0.29630845]
[1740932324474,0.26942703,622.77,619.18,0.29630845]
[1740932324677,0.26942703,622.76,619.18,0.29630845]
[1740932324878,0.26942703,622.75,619.18,0.29630845]
[1740932325079,0.26942703,622.74,619.18,0.29630845]
[1740932325381,1.41954668,622.48,619.18,0.29630845]
[1740932325579,0.26954522,622.47,619.19,0.29642874]
[1740932325778,0.26954522,622.46,619.18,0.29642874]
[1740932325975,0.26954522,622.45,619.19,0.29642874]
[1740932326281,0.26954522,622.44,619.2,0.29642874]
[1740932326580,1.41954668,622.48,619.21,0.29642874]
[1740932326581,0.26954522,622.43,619.21,0.29642874]
[1740932326877,0.26954522,622.42,619.17,1.363]
[1740932327081,0.26954522,622.41,619.17,1.363]
[1740932327280,0.26954522,622.4,619.18,0.29648949]
[1740932327482,0.26954522,622.39,619.18,0.29648949]
[1740932327680,0.26954522,622.38,619.18,0.29648949]
[1740932327875,0.26954522,622.37,619.18,0.29648949]
[1740932328079,0.26954522,622.36,619.18,0.29648949]
[1740932328278,0.26954522,622.35,619.18,0.29648949]
[1740932328481,0.26954522,622.34,619.18,0.29648949]
[1740932328786,0.26954522,622.33,619.19,0.29662635]
[1740932328975,0.26954522,622.32,619.18,0.29662635]
[1740932329179,0.26954522,622.31,619.17,1.363]
[1740932329382,0.26954522,622.3,619.17,1.363]
[1740932329581,0.26954522,622.29,619.17,1.363]
[1740932329882,0.26954522,622.28,619.17,1.363]
[1740932330182,0.26954522,622.27,619.17,1.363]
[1740932330582,0.26954522,622.26,619.17,1.363]
[1740932330780,0.26954522,622.25,619.17,1.363]
[1740932330978,0.26954522,622.24,619.17,1.363]
[1740932331175,0.26954522,622.23,619.17,1.363]
[1740932331478,0.26954522,622.22,619.18,0.29653148]
[1740932331683,0.26954522,622.21,619.18,0.29653148]
[1740932331981,0.26954522,622.2,619.19,0.29653148]
[1740932332177,1.41954668,622.48,619.17,1.363]
[1740932332376,0.26953499,622.47,619.18,0.29641862]
[1740932332580,0.26953499,622.46,619.19,0.29641862]
[1740932332779,0.26953499,622.45,619.18,0.29641862]
[1740932332979,0.26953499,622.44,619.19,0.29641862]
[1740932333179,0.26953499,622.43,619.18,0.29641862]
[1740932333376,0.26953499,622.42,619.2,0.804]
[1740932333575,0.26953499,622.41,619.21,0.29641862]
[1740932333979,0.26953499,622.4,619.23,1.16257576]
[1740932334183,0.26953499,622.39,619.24,0.29641862]
[1740932334381,0.26953499,622.38,619.24,0.29641862]
[1740932334582,0.26953499,622.37,619.23,1.16257576]
[1740932334884,0.26953499,622.36,619.24,0.29640964]
[1740932335084,0.26953499,622.35,619.24,0.29640964]
[1740932335283,0.26953499,622.34,619.24,0.29640964]
[1740932335584,0.26953499,622.33,619.25,0.29640964]
[1740932335783,1.41954668,622.59,619.26,0.29640964]
[1740932335784,0.26953499,622.32,619.26,0.29640964]
[1740932335985,0.26953499,622.31,619.24,0.29640964]
[1740932336183,0.26953499,622.3,619.25,0.29640964]
[1740932336483,0.26953499,622.29,619.26,0.29640964]
[1740932336684,0.26953499,622.28,619.21,0.29640964]
[1740932336884,0.26953499,622.27,619.22,0.29640964]
[1740932337280,0.26952682,622.26,619.23,1.41140948]
[1740932337479,0.26952682,622.25,619.24,0.29640948]
[1740932337681,0.26952682,622.24,619.24,0.29640948]
[1740932337877,0.26952682,622.23,619.24,0.29640948]
[1740932338081,1.41954668,622.04,619.26,1.16257576]
[1740932338381,0.26952682,622.03,619.27,0.29640948]
[1740932338580,0.26952682,622.02,619.27,0.29640948]
[1740932338786,0.26952682,622.01,619.27,0.29640948]
[1740932338982,0.26952682,622.0,619.27,0.29640948]
[1740932339177,0.26952682,621.99,619.27,0.29640948]
[1740932339381,0.26952682,621.98,619.27,0.29640948]
[1740932339583,0.26952682,621.97,619.27,0.29640948]
[1740932339779,0.32162614,621.84,619.28,0.32295569]
[1740932339987,0.26952682,621.83,619.29,0.29640948]
[1740932340283,1.41954668,621.7,619.3,0.32294526]
[1740932340484,0.32176067,621.58,619.31,0.29640948]
[1740932340680,0.26952682,621.57,619.31,0.29640948]
[1740932340877,0.26952682,621.56,619.31,0.29640948]
[1740932341180,0.26952682,621.55,619.32,0.29642531]
[1740932341482,0.26952682,621.54,619.33,0.29642531]
[1740932341685,0.26952682,621.53,619.31,0.29642531]
[1740932341879,0.26952682,621.52,619.32,0.29642531]
[1740932342079,0.26952682,621.51,619.33,0.29642531]
[1740932342285,0.26952682,621.5,619.34,0.29642531]
[1740932342485,0.26952682,621.49,619.35,0.29642531]
[1740932342679,0.26952682,621.49,619.31,0.29642531]
[1740932342885,0.26952682,621.48,619.31,0.29642531]
[1740932343086,0.26952682,621.47,619.31,0.29642531]
[1740932343289,0.26952682,621.46,619.3,0.32294526]
[1740932343585,0.32176067,621.58,619.3,0.32294526]
[1740932343586,0.26952682,621.45,619.3,0.32294526]
[1740932343787,0.26952682,621.44,619.3,0.32294526]
[1740932344286,0.26952682,621.43,619.3,0.32294526]
[1740932344589,0.26952682,621.42,619.3,0.32294526]
[1740932344785,0.26952682,621.41,619.3,0.32294526]
[1740932344982,0.26952682,621.4,619.3,0.32294526]
[1740932345186,0.26952682,621.39,619.3,0.32294526]
[1740932345379,0.26952682,621.38,619.3,0.32294526]
[1740932345880,0.26952682,621.37,619.3,0.32294526]
[1740932346086,0.32192122,621.27,619.3,0.32294526]
[1740932346285,0.26952682,621.26,619.3,0.32294526]
[1740932346486,0.26952682,621.25,619.3,0.32294526]
[1740932346686,0.26952682,621.24,619.3,0.32294526]
[1740932346887,0.26952682,621.23,619.3,0.32294526]
[1740932347086,0.26952682,621.22,619.3,0.32294526]
[1740932347386,0.26952682,621.21,619.3,0.32294526]
[1740932347586,0.26952682,621.2,619.3,0.32294526]
[1740932347783,0.32196786,621.18,619.3,0.32294526]
[1740932347986,0.26952682,621.17,619.3,0.32294526]
[1740932348185,0.26952682,621.16,619.3,0.32294526]
[1740932348389,0.3219886,621.14,619.3,0.32294526]
[1740932348590,0.26952682,621.13,619.3,0.32294526]
[1740932348788,0.26952682,621.12,619.3,0.32294526]
[1740932349087,0.26952682,621.11,619.3,0.32294526]
[1740932349290,1.41954668,621.44,619.3,0.32294526]
[1740932349291,0.32201452,621.09,619.3,0.32294526]
[1740932349486,0.26952682,621.08,619.3,0.32294526]
[1740932349686,0.26952682,621.07,619.3,0.32294526]
[1740932349889,0.32203526,621.05,619.3,0.32294526]
[1740932350089,0.26952682,621.04,619.3,0.32294526]
[1740932350285,0.26952682,621.03,619.3,0.32294526]
[1740932350486,0.26952682,621.02,619.3,0.32294526]
[1740932350691,0.26952682,621.01,619.23,1.115]
[1740932350886,0.26952682,621.0,619.23,1.115]
[1740932351087,0.26952682,620.99,619.23,1.115]
[1740932351287,0.26952682,620.98,619.24,0.853]
[1740932351487,0.26952682,620.97,619.24,0.853]
[1740932351687,0.26952682,620.96,619.24,0.853]
[1740932351892,0.26952682,620.95,619.24,0.853]
[1740932352092,0.26952682,620.94,619.24,0.853]
[1740932352286,0.26952682,620.93,619.24,0.853]
[1740932352486,0.26952682,620.92,619.24,0.853]
[1740932352692,0.26952682,620.91,619.24,0.853]
[1740932352887,0.26952682,620.9,619.24,0.853]
[1740932353097,0.26952682,620.89,619.24,0.853]
[1740932353393,0.26952682,620.88,619.24,0.853]
[1740932353591,0.26952682,620.87,619.24,0.853]
[1740932353793,0.26952682,620.86,619.24,0.853]
[1740932354091,0.26952682,620.85,619.24,0.853]
[1740932354287,0.26952682,620.84,619.24,0.853]
[1740932354588,0.26952682,620.83,619.24,0.853]
[1740932354792,0.26952682,620.82,619.24,0.853]
[1740932354988,0.26952682,620.81,619.24,0.853]
[1740932355293,0.26952682,620.8,619.24,0.853]
[1740932355493,0.26952682,620.79,619.24,0.853]
[1740932355793,0.26952682,620.78,619.24,0.853]
[1740932355994,1.41954668,621.29,619.24,0.853]
[1740932356188,0.27027364,621.28,619.24,0.853]
[1740932356394,0.27027364,621.27,619.24,0.853]
[1740932356594,0.27027364,621.26,619.24,0.853]
[1740932356796,0.27027364,621.25,619.24,0.853]
[1740932357094,0.27027364,621.24,619.24,0.853]
[1740932357292,0.27027364,621.23,619.24,0.853]
[1740932357489,0.27027364,621.22,619.24,0.853]
[1740932357790,0.27027364,621.21,619.24,0.853]
[1740932357989,2.41520095,621.95,619.24,0.853]
[1740932357990,0.27027364,621.2,619.24,0.853]
[1740932358188,0.27027364,621.19,619.24,0.853]
[1740932358395,0.27027364,621.18,619.24,0.853]
[1740932358590,0.27027364,621.17,619.24,0.853]
[1740932358793,0.27027364,621.16,619.24,0.853]
[1740932358994,0.27027364,621.15,619.24,0.853]
[1740932359194,0.27027364,621.14,619.24,0.853]
[1740932359398,0.27027364,621.13,619.24,0.853]
[1740932359699,0.27027364,621.12,619.24,0.853]
[1740932359896,0.27027364,621.11,619.24,0.853]
[1740932360097,0.27027364,621.1,619.24,0.853]
[1740932360293,0.27027364,621.09,619.24,0.853]
[1740932360602,0.27027364,621.08,619.25,0.964]
[1740932360797,0.27027364,621.07,619.25,0.964]
[1740932360999,0.27027364,621.06,619.25,0.964]
[1740932361394,1.41954668,621.77,619.25,0.964]
[1740932361598,1.41954668,621.77,619.26,0.716]
[1740932361997,0.26992962,621.76,619.26,0.716]
[1740932362198,0.26992962,621.75,619.26,0.716]
[1740932362401,0.26992962,621.74,619.26,0.716]
[1740932362598,0.26992962,621.73,619.26,0.716]
[1740932362898,0.26992962,621.72,619.26,0.716]
[1740932363099,0.26992962,621.71,619.26,0.716]
[1740932363400,0.26992962,621.7,619.26,0.716]
[1740932363699,0.26992962,621.69,619.26,0.716]
[1740932363896,0.26992962,621.68,619.26,0.716]
[1740932364098,0.26992962,621.67,619.26,0.716]
[1740932364300,0.26992962,621.66,619.26,0.716]
[1740932364500,1.41954668,622.34,619.26,0.716]
[1740932364696,0.27021011,622.33,619.26,0.716]
[1740932365002,0.27021011,622.32,619.26,0.716]
[1740932365200,1.41954668,621.87,619.26,0.716]
[1740932365401,0.27021011,621.86,619.26,0.716]
[1740932365597,0.27021011,621.85,619.26,0.716]
[1740932365802,0.27021011,621.84,619.26,0.716]
[1740932366004,0.27021011,621.83,619.26,0.716]
[1740932366405,0.27021011,621.82,619.26,0.716]
[1740932366597,0.27021011,621.81,619.26,0.716]
[1740932366803,0.27021011,621.8,619.26,0.716]
[1740932366999,0.27021011,621.79,619.26,0.716]
[1740932367303,0.27021011,621.78,619.26,0.716]
[1740932367498,0.27021011,621.77,619.26,0.716]
[1740932367701,0.27021011,621.76,619.26,0.716]
[1740932367899,1.41954668,621.47,619.26,0.716]
[1740932368199,0.27021011,621.46,619.26,0.716]
[1740932368404,0.27021011,621.45,619.26,0.716]
[1740932368606,0.27021011,621.44,619.26,0.716]
[1740932368801,0.27021011,621.43,619.26,0.716]
[1740932368995,0.27021011,621.42,619.26,0.716]
[1740932369200,0.27021011,621.41,619.26,0.716]
[1740932369401,0.27021011,621.4,619.26,0.716]
[1740932369602,0.27021011,621.39,619.26,0.716]
[1740932369806,0.27021011,621.38,619.26,0.716]
[1740932369999,0.27021011,621.37,619.26,0.716]
[1740932370200,0.27021011,621.36,619.26,0.716]
[1740932370402,0.27021011,621.35,619.26,0.716]
[1740932370605,0.27021011,621.34,619.26,0.716]
[1740932370805,0.27021011,621.33,619.27,0.984]
[1740932371006,0.27021011,621.32,619.27,0.984]
[1740932371307,0.27021011,621.31,619.27,0.984]
[1740932371507,0.27021011,621.3,619.27,0.984]
[1740932371803,0.27021011,621.29,619.27,0.984]
[1740932372105,0.27021011,621.28,619.27,0.984]
[1740932372303,0.27021011,621.27,619.27,0.984]
[1740932372504,0.27021011,621.26,619.27,0.984]
[1740932372701,0.27021011,621.25,619.27,0.984]
[1740932372905,0.27021011,621.24,619.27,0.984]
[1740932373105,0.27021011,621.23,619.27,0.984]
[1740932373303,0.27021011,621.22,619.27,0.984]
[1740932373507,0.27021011,621.21,619.27,0.984]
[1740932373708,0.27021011,621.2,619.27,0.984]
[1740932373909,0.27021011,621.19,619.27,0.984]
[1740932374208,0.27021011,621.18,619.27,0.984]
[1740932374409,0.2703099,621.17,619.27,0.984]
[1740932374610,0.2703099,621.16,619.27,0.984]
[1740932374811,0.2703099,621.15,619.27,0.984]
[1740932375011,0.2703099,621.14,619.27,0.984]
[1740932375204,0.2703099,621.13,619.27,0.984]
[1740932375409,0.2703099,621.12,619.27,0.984]
[1740932375611,0.2703099,621.11,619.27,0.984]
[1740932375811,0.2703099,621.1,619.27,0.984]
[1740932376111,0.27025566,621.09,619.27,0.984]
[1740932376312,0.27025566,621.08,619.27,0.984]
[1740932376514,0.27025566,621.07,619.27,0.984]
[1740932376712,0.27025566,621.06,619.27,0.984]
[1740932376907,0.27025566,621.05,619.27,0.984]
[1740932377111,0.27025566,621.04,619.27,0.984]
[1740932377309,0.27025566,621.03,619.27,0.984]
[1740932377510,0.27025566,621.02,619.27,0.984]
[1740932377709,0.27025566,621.01,619.27,0.984]
[1740932377911,0.27025566,621.0,619.27,0.984]
[1740932378112,0.27025566,620.99,619.27,0.984]
[1740932378313,0.27025566,620.98,619.27,0.984]
[1740932378512,2.41520095,622.45,619.27,0.984]
[1740932378513,0.27025566,620.97,619.27,0.984]
[1740932378812,0.27025566,620.96,619.27,0.984]
[1740932379013,0.27025566,620.95,619.27,0.984]
[1740932379208,0.27025566,620.94,619.27,0.984]
[1740932379413,0.27025566,620.93,619.27,0.984]
[1740932379613,0.27025566,620.92,619.27,0.984]
[1740932379809,0.27025566,620.91,619.27,0.984]
[1740932380014,0.27025566,620.9,619.27,0.984]
[1740932380211,0.27025566,620.89,619.27,0.984]
[1740932380415,0.27025566,620.88,619.27,0.984]
[1740932380715,0.27025566,620.87,619.27,0.984]
[1740932380915,0.27025566,620.86,619.27,0.984]
[1740932381117,0.27021393,620.85,619.27,0.984]
[1740932381415,0.27021393,620.84,619.27,0.984]
[1740932381616,0.27021393,620.83,619.27,0.984]
[1740932381814,0.27021393,620.82,619.27,0.984]
[1740932382014,0.27021393,620.81,619.27,0.984]
[1740932382216,0.27021393,620.8,619.27,0.984]
[1740932382412,0.27021393,620.79,619.27,0.984]
[1740932382619,1.41954668,620.9,619.27,0.984]
[1740932382820,0.27014597,620.78,619.27,0.984]
[1740932383016,0.27014597,620.77,619.27,0.984]
[1740932383215,0.27014597,620.76,619.27,0.984]
[1740932383422,0.27014597,620.75,619.27,0.984]
[1740932383621,0.27014597,620.74,619.27,0.984]
[1740932383817,0.27014597,620.73,619.27,0.984]
[1740932384123,0.27014597,620.72,619.27,0.984]
[1740932384324,0.27014597,620.71,619.27,0.984]
[1740932384520,0.27014597,620.7,619.27,0.984]
[1740932384718,0.27014597,620.69,619.27,0.984]
[1740932384919,0.27014597,620.68,619.27,0.984]
[1740932385117,1.41954668,621.37,619.27,0.984]
[1740932385118,0.27014597,620.67,619.27,0.984]
[1740932385323,0.3222428,620.65,619.27,0.984]
[1740932385625,0.27014597,620.64,619.27,0.984]
[1740932385823,1.41954668,621.37,619.27,0.984]
[1740932385824,0.32225838,620.62,619.27,2.077]
[1740932386026,0.27024675,620.61,619.27,2.077]
[1740932386219,0.27024675,620.6,619.27,2.077]
[1740932386419,0.27024675,620.59,619.27,2.077]
[1740932386725,0.27024675,620.58,619.27,2.077]
[1740932387020,0.27024675,620.57,619.27,2.985]
[1740932387326,0.27017935,620.56,619.27,2.985]
[1740932387519,0.27017935,620.55,619.27,2.985]
[1740932387722,0.27017935,620.54,619.27,2.985]
[1740932388032,0.27017935,620.53,619.27,2.985]
[1740932388326,0.27017935,620.52,619.27,2.985]
[1740932388527,0.27017935,620.51,619.27,2.985]
[1740932388723,0.27017935,620.5,619.27,2.985]
[1740932388927,0.27017935,620.49,619.27,2.985]
[1740932389230,0.27017935,620.48,619.27,2.985]
[1740932389428,0.27013292,620.47,619.27,2.985]
[1740932389728,0.27013292,620.46,619.27,2.985]
[1740932390027,0.27013292,620.45,619.27,2.985]
[1740932390228,0.27013292,620.44,619.27,2.985]
[1740932390427,0.27013292,620.43,619.27,2.985]
[1740932390628,0.27013292,620.42,619.27,2.985]
[1740932390827,0.27013292,620.41,619.27,2.985]
[1740932391225,0.27013292,620.4,619.27,2.985]
[1740932391426,0.27013292,620.39,619.27,2.985]
[1740932391623,0.27013292,620.38,619.27,2.985]
[1740932391926,0.27013292,620.37,619.27,2.985]
[1740932392122,0.27013292,620.36,619.27,2.985]
[1740932392326,0.27013292,620.35,619.27,2.985]
[1740932392524,0.27013292,620.34,619.27,2.985]
[1740932392725,0.2702192,620.33,619.27,2.985]
[1740932392928,0.2702192,620.32,619.27,2.985]
[1740932393123,0.2702192,620.31,619.27,2.985]
[1740932393323,0.2702192,620.3,619.27,2.985]
[1740932393526,0.2702192,620.29,619.27,2.985]
[1740932393725,0.2702192,620.28,619.27,4.082]
[1740932393927,0.2702192,620.27,619.27,4.082]
[1740932394128,0.2702192,620.26,619.27,4.082]
[1740932394428,0.2702192,620.25,619.27,4.082]
[1740932394629,1.74180506,620.62,619.27,4.082]
[1740932394630,0.2702192,620.24,619.27,4.082]
[1740932394830,0.2702192,620.23,619.27,4.082]
[1740932395028,0.2702192,620.22,619.27,4.082]
[1740932395229,0.2702192,620.61,619.27,4.082]
[1740932395428,0.2702192,620.6,619.27,4.082]
[1740932395620,0.2702192,620.59,619.27,4.082]
[1740932395821,0.2702192,620.58,619.27,4.082]
[1740932396129,0.2702192,620.57,619.27,4.082]
[1740932396324,0.2702192,620.56,619.27,4.082]
[1740932396630,0.2702192,620.55,619.27,4.082]
[1740932396830,0.2702192,620.54,619.27,4.082]
[1740932397030,0.2702192,620.53,619.27,4.082]
[1740932397331,0.2702192,620.52,619.27,4.082]
[1740932397533,0.32225838,620.62,619.27,4.082]
[1740932397730,0.26994462,620.61,619.27,4.082]
[1740932398035,0.26994462,620.6,619.27,4.082]
[1740932398235,0.26994462,620.59,619.27,4.082]
[1740932398532,0.26994462,620.58,619.27,4.082]
[1740932398733,0.26994462,620.57,619.27,4.082]
[1740932398934,0.32229473,620.55,619.27,4.082]
[1740932399428,0.26993339,620.54,619.27,4.082]
[1740932399632,0.26993339,620.53,619.27,4.082]
[1740932399833,0.26993339,620.52,619.27,4.082]
[1740932400029,0.26993339,620.51,619.27,4.082]
[1740932400335,0.26993339,620.5,619.27,4.082]
[1740932400532,0.26993339,620.49,619.27,4.082]
[1740932400733,0.26993339,620.48,619.27,4.082]
[1740932400933,0.26993339,620.47,619.27,4.082]
[1740932401134,0.26993339,620.46,619.27,4.082]
[1740932401334,0.26993339,620.45,619.27,4.082]
[1740932401530,0.26993339,620.44,619.27,4.082]
[1740932401735,0.26993339,620.43,619.27,4.082]
[1740932402034,0.26993339,620.54,619.27,4.082]
[1740932402230,0.26993339,620.42,619.27,4.082]
[1740932402435,0.32229473,620.55,619.27,4.082]
[1740932402436,0.26993339,620.41,619.27,4.082]
[1740932402635,0.26993339,620.4,619.27,4.082]
[1740932402829,0.26993339,620.39,619.27,4.082]
[1740932403134,0.26993339,620.38,619.27,4.082]
[1740932403434,0.26993339,620.37,619.27,4.082]
[1740932403636,0.26993339,620.36,619.27,4.082]
[1740932403936,0.26993339,620.35,619.27,4.082]
[1740932404136,0.26993339,620.34,619.27,4.082]
[1740932404335,0.26993339,620.33,619.27,4.082]
[1740932404636,0.26993339,620.32,619.27,4.082]
[1740932404839,0.26993339,620.31,619.27,4.082]
[1740932405035,0.26993339,620.3,619.27,4.082]
[1740932405337,0.26993339,620.29,619.27,4.082]
[1740932405534,0.26993339,620.28,619.27,4.082]
[1740932405731,0.26993339,620.27,619.27,4.082]
[1740932406035,0.32245062,620.25,619.27,4.082]
[1740932406235,0.26993339,620.24,619.27,4.082]
[1740932406938,0.26993339,620.23,619.27,4.082]
[1740932407137,0.26993339,620.22,619.27,4.082]
[1740932407334,0.26993339,620.21,619.27,4.082]
[1740932407540,0.26993339,620.2,619.27,4.082]
[1740932407837,0.26993339,620.19,619.27,4.082]
[1740932408038,0.26993339,620.18,619.27,4.082]
[1740932408232,0.26993339,620.17,619.27,4.082]
[1740932408435,0.26993339,620.16,619.27,4.082]
[1740932408639,0.26993339,620.15,619.27,4.082]
[1740932408839,0.27003996,620.14,619.27,4.082]
[1740932409036,0.27003996,620.13,619.27,4.082]
[1740932409237,0.27003996,620.24,619.27,4.082]
[1740932409536,0.27003996,620.23,619.27,4.082]
[1740932409732,0.27003996,620.22,619.27,4.082]
[1740932409938,0.27003996,620.24,619.27,4.082]
[1740932410138,0.27003996,620.23,619.27,4.082]
[1740932410340,0.27003996,620.22,619.27,4.082]
[1740932410542,0.26987915,620.21,619.27,4.082]
[1740932410736,0.26987915,620.24,619.27,4.082]
[1740932410941,0.26987915,620.23,619.27,4.082]
[1740932411140,0.26987915,620.22,619.27,4.082]
[1740932411441,0.26987915,620.21,619.27,4.082]